[Event "*** Titled Tuesday Blitz"]
[Site "Chess.com"]
[Date "2021.04.20"]
[Round "5"]
[White "Mikhal867"]
[Black "OlegKrivonosov"]
[Result "0-1"]
[WhiteElo "2442"]
[BlackElo "2627"]
[TimeControl "180+1"]
[EndTime "10:55:08 PDT"]
[Termination "OlegKrivonosov won by resignation"]

1. c4 {[%clk 0:02:58.4]} 1... e6 {[%clk 0:02:59.5]} 2. g3 {[%clk 0:02:56.8]}
2... d5 {[%clk 0:02:59.5]} 3. Bg2 {[%clk 0:02:56.5]} 3... Nf6 {[%clk 0:02:59.9]}
4. Nf3 {[%clk 0:02:56.2]} 4... Be7 {[%clk 0:03:00.3]} 5. b3 {[%clk 0:02:56.4]}
5... O-O {[%clk 0:03:00.5]} 6. O-O {[%clk 0:02:56.4]} 6... b6 {[%clk 0:03:00.9]}
7. Bb2 {[%clk 0:02:56.5]} 7... Bb7 {[%clk 0:03:01.3]} 8. e3 {[%clk 0:02:47.3]}
8... c5 {[%clk 0:03:00.6]} 9. d4 {[%clk 0:02:45.7]} 9... dxc4 {[%clk 0:02:55.3]}
10. bxc4 {[%clk 0:02:45.2]} 10... Nc6 {[%clk 0:02:51.4]} 11. Ne5 {[%clk
0:02:37.3]} 11... Rc8 {[%clk 0:02:48.8]} 12. Qb3 {[%clk 0:02:22.3]} 12... Na5
{[%clk 0:02:45.6]} 13. Bxb7 {[%clk 0:02:07.5]} 13... Nxb3 {[%clk 0:02:43.4]} 14.
axb3 {[%clk 0:02:07.4]} 14... Qc7 {[%clk 0:02:32.7]} 15. Bxc8 {[%clk 0:01:49.7]}
15... Rxc8 {[%clk 0:02:32.9]} 16. Nc3 {[%clk 0:01:47.1]} 16... Qb7 {[%clk
0:02:24.8]} 17. Ra4 {[%clk 0:01:37.7]} 17... a5 {[%clk 0:02:22.2]} 18. Nb5
{[%clk 0:01:36.4]} 18... Nd7 {[%clk 0:02:09.7]} 19. Nxd7 {[%clk 0:01:25.3]}
19... Qxd7 {[%clk 0:02:08]} 20. Rd1 {[%clk 0:01:22.6]} 20... cxd4 {[%clk
0:01:55.9]} 21. Rxd4 {[%clk 0:01:19.5]} 21... Qb7 {[%clk 0:01:53]} 22. Rg4
{[%clk 0:01:16.9]} 22... f6 {[%clk 0:01:49.4]} 23. Ra1 {[%clk 0:01:10]} 23...
Rd8 {[%clk 0:01:47.8]} 24. Rd4 {[%clk 0:01:06.1]} 24... Rxd4 {[%clk 0:01:41]}
25. Nxd4 {[%clk 0:01:05.6]} 25... Qe4 {[%clk 0:01:38.2]} 26. Rd1 {[%clk
0:00:52.5]} 26... Bc5 {[%clk 0:01:35.7]} 27. Rc1 {[%clk 0:00:33.8]} 27... e5
{[%clk 0:01:27.5]} 28. Nb5 {[%clk 0:00:30.5]} 28... h5 {[%clk 0:01:25.1]} 29.
Ba3 {[%clk 0:00:27.4]} 29... h4 {[%clk 0:01:18.5]} 30. gxh4 {[%clk 0:00:23.9]}
30... Qg4+ {[%clk 0:01:10]} 31. Kf1 {[%clk 0:00:22.8]} 31... Qxh4 {[%clk
0:01:09.1]} 32. Bxc5 {[%clk 0:00:21.6]} 32... bxc5 {[%clk 0:01:09.5]} 33. Kg2
{[%clk 0:00:21.6]} 33... Qe4+ {[%clk 0:01:06.4]} 34. Kg1 {[%clk 0:00:21]} 34...
Qg6+ {[%clk 0:01:06.1]} 35. Kf1 {[%clk 0:00:20.4]} 35... Qd3+ {[%clk 0:01:05.7]}
36. Kg2 {[%clk 0:00:20.1]} 36... Qxb3 {[%clk 0:01:04.9]} 37. Nd6 {[%clk
0:00:19.9]} 37... a4 {[%clk 0:01:02.9]} 38. Nb5 {[%clk 0:00:19.4]} 38... a3
{[%clk 0:01:02.2]} 39. Rc3 {[%clk 0:00:18.6]} 39... Qb4 {[%clk 0:00:57.9]} 40.
Rxa3 {[%clk 0:00:17.5]} 40... Qxc4 {[%clk 0:00:57.8]} 41. Ra8+ {[%clk
0:00:16.5]} 41... Kh7 {[%clk 0:00:57.7]} 42. Rb8 {[%clk 0:00:16]} 42... Qe4+
{[%clk 0:00:53.5]} 43. Kg3 {[%clk 0:00:15.3]} 43... Qb1 {[%clk 0:00:51.5]} 44.
Rb7 {[%clk 0:00:14.3]} 44... c4 {[%clk 0:00:48.4]} 45. Nd6 {[%clk 0:00:13.5]}
45... Qg1+ {[%clk 0:00:46.1]} 46. Kh3 {[%clk 0:00:12]} 46... Qxf2 {[%clk
0:00:40.4]} 47. Rc7 {[%clk 0:00:11]} 47... Qxe3+ {[%clk 0:00:39]} 48. Kg2 {[%clk
0:00:10.7]} 48... Qd2+ {[%clk 0:00:38.5]} 49. Kg3 {[%clk 0:00:10.1]} 49... Qxd6
{[%clk 0:00:38.7]} 50. Rxc4 {[%clk 0:00:09.5]} 50... Qd3+ {[%clk 0:00:37.9]} 51.
Kg4 {[%clk 0:00:07.4]} 51... Qxc4+ {[%clk 0:00:37.5]} 52. Kf5 {[%clk 0:00:07.4]}
52... Qf4+ {[%clk 0:00:37.1]} 53. Ke6 {[%clk 0:00:07.1]} 53... Qxh2 {[%clk
0:00:37.3]} 0-1

[Event "*** Titled Tuesday Blitz"]
[Site "Chess.com"]
[Date "2021.04.20"]
[Round "5"]
[White "JoachimMouhamad"]
[Black "vovachesss"]
[Result "0-1"]
[WhiteElo "2457"]
[BlackElo "2694"]
[TimeControl "180+1"]
[EndTime "10:55:09 PDT"]
[Termination "vovachesss won on time"]

1. e4 {[%clk 0:03:00.9]} 1... e5 {[%clk 0:02:57.4]} 2. Nf3 {[%clk 0:03:00.7]}
2... d6 {[%clk 0:02:54.1]} 3. d4 {[%clk 0:03:00.1]} 3... Nd7 {[%clk 0:02:53]} 4.
Nc3 {[%clk 0:02:59.4]} 4... Be7 {[%clk 0:02:52.2]} 5. Bc4 {[%clk 0:02:58.9]}
5... c6 {[%clk 0:02:52.2]} 6. O-O {[%clk 0:02:52.9]} 6... Ngf6 {[%clk 0:02:52]}
7. a4 {[%clk 0:02:41]} 7... O-O {[%clk 0:02:51.8]} 8. Re1 {[%clk 0:02:32.3]}
8... b6 {[%clk 0:02:51.5]} 9. h3 {[%clk 0:02:30.6]} 9... Bb7 {[%clk 0:02:49.5]}
10. Ba2 {[%clk 0:02:16.4]} 10... a6 {[%clk 0:02:47.9]} 11. Be3 {[%clk
0:02:07.1]} 11... b5 {[%clk 0:02:47.1]} 12. axb5 {[%clk 0:02:00.1]} 12... axb5
{[%clk 0:02:46.9]} 13. b4 {[%clk 0:01:33.6]} 13... Qc7 {[%clk 0:02:28.5]} 14.
Rb1 {[%clk 0:01:28.9]} 14... Ra3 {[%clk 0:02:24.5]} 15. Rb3 {[%clk 0:01:17.3]}
15... Rfa8 {[%clk 0:02:18.6]} 16. Qb1 {[%clk 0:01:17.8]} 16... Nb6 {[%clk
0:02:05.4]} 17. Rxa3 {[%clk 0:01:15.2]} 17... Rxa3 {[%clk 0:02:05.1]} 18. dxe5
{[%clk 0:01:15.4]} 18... dxe5 {[%clk 0:02:05.1]} 19. Qb2 {[%clk 0:01:09.6]}
19... Ra8 {[%clk 0:01:59.3]} 20. Bxb6 {[%clk 0:01:03.9]} 20... Qxb6 {[%clk
0:01:59.1]} 21. Nxe5 {[%clk 0:01:04.3]} 21... c5 {[%clk 0:01:32]} 22. bxc5
{[%clk 0:01:00.7]} 22... Bxc5 {[%clk 0:01:31.9]} 23. Re2 {[%clk 0:00:49.5]}
23... Bd4 {[%clk 0:01:27.6]} 24. Nxf7 {[%clk 0:00:43.4]} 24... Bxc3 {[%clk
0:01:01.2]} 25. Qxc3 {[%clk 0:00:39.8]} 25... Rxa2 {[%clk 0:00:57.5]} 26. Qb3
{[%clk 0:00:29.4]} 26... Ra1+ {[%clk 0:00:54.4]} 27. Kh2 {[%clk 0:00:30]} 27...
Kf8 {[%clk 0:00:38.3]} 28. Ng5 {[%clk 0:00:29]} 28... Qc7+ {[%clk 0:00:31.6]}
29. e5 {[%clk 0:00:28]} 29... Bd5 {[%clk 0:00:22.5]} 30. Qb2 {[%clk 0:00:25.4]}
30... Ra2 {[%clk 0:00:20.5]} 31. Qb4+ {[%clk 0:00:24.7]} 31... Kg8 {[%clk
0:00:19.3]} 32. f4 {[%clk 0:00:21.3]} 32... h6 {[%clk 0:00:15.6]} 33. exf6
{[%clk 0:00:14.3]} 33... hxg5 {[%clk 0:00:15.9]} 34. Re8+ {[%clk 0:00:12.1]}
34... Kh7 {[%clk 0:00:16.5]} 35. fxg7 {[%clk 0:00:08.4]} 35... Qxf4+ {[%clk
0:00:16.6]} 36. Qxf4 {[%clk 0:00:08.5]} 36... gxf4 {[%clk 0:00:17.5]} 37. Re5
{[%clk 0:00:07.4]} 37... Bc4 {[%clk 0:00:16.3]} 38. Rg5 {[%clk 0:00:05.6]} 38...
Kg8 {[%clk 0:00:17]} 39. h4 {[%clk 0:00:05.6]} 39... Rxc2 {[%clk 0:00:16.4]} 40.
Kh3 {[%clk 0:00:06.3]} 40... b4 {[%clk 0:00:16.4]} 41. h5 {[%clk 0:00:06.7]}
41... b3 {[%clk 0:00:16.4]} 42. h6 {[%clk 0:00:07.2]} 42... b2 {[%clk
0:00:11.9]} 43. h7+ {[%clk 0:00:05.2]} 43... Kxh7 {[%clk 0:00:12]} 0-1

[Event "*** Titled Tuesday Blitz"]
[Site "Chess.com"]
[Date "2021.04.20"]
[Round "5"]
[White "exoticprincess"]
[Black "elcandado"]
[Result "1-0"]
[WhiteElo "2923"]
[BlackElo "2643"]
[TimeControl "180+1"]
[EndTime "10:55:11 PDT"]
[Termination "exoticprincess won by checkmate"]

1. d4 {[%clk 0:03:00.9]} 1... Nf6 {[%clk 0:02:58.9]} 2. Nc3 {[%clk 0:03:01.8]}
2... d6 {[%clk 0:02:51.3]} 3. e4 {[%clk 0:03:01.2]} 3... e5 {[%clk 0:02:50.8]}
4. Nf3 {[%clk 0:02:58.7]} 4... Nbd7 {[%clk 0:02:49.4]} 5. Bc4 {[%clk 0:02:59.1]}
5... Be7 {[%clk 0:02:47.9]} 6. a4 {[%clk 0:02:57.7]} 6... O-O {[%clk 0:02:47.4]}
7. a5 {[%clk 0:02:57.8]} 7... c6 {[%clk 0:02:41.4]} 8. O-O {[%clk 0:02:57.5]}
8... exd4 {[%clk 0:02:41]} 9. Nxd4 {[%clk 0:02:57.2]} 9... Nxe4 {[%clk
0:02:40.9]} 10. Nxe4 {[%clk 0:02:49.3]} 10... d5 {[%clk 0:02:40.7]} 11. Bxd5
{[%clk 0:02:43.5]} 11... cxd5 {[%clk 0:02:41.6]} 12. Nc3 {[%clk 0:02:43.9]}
12... Nf6 {[%clk 0:02:10.5]} 13. a6 {[%clk 0:02:38.5]} 13... h6 {[%clk 0:01:51]}
14. Re1 {[%clk 0:02:30.1]} 14... Re8 {[%clk 0:01:39.5]} 15. h3 {[%clk
0:02:25.4]} 15... bxa6 {[%clk 0:01:23.2]} 16. Nc6 {[%clk 0:02:17.9]} 16... Qd6
{[%clk 0:01:05.8]} 17. Nxe7+ {[%clk 0:02:16.6]} 17... Rxe7 {[%clk 0:01:06.1]}
18. Rxe7 {[%clk 0:02:17.3]} 18... Qxe7 {[%clk 0:01:06.4]} 19. Be3 {[%clk
0:02:18.2]} 19... Bb7 {[%clk 0:00:55.6]} 20. Bd4 {[%clk 0:02:12.7]} 20... Ne4
{[%clk 0:00:55.2]} 21. Ne2 {[%clk 0:02:00.4]} 21... Qg5 {[%clk 0:00:35]} 22. Ra3
{[%clk 0:01:50.3]} 22... Re8 {[%clk 0:00:32.6]} 23. Re3 {[%clk 0:01:49.3]} 23...
Re6 {[%clk 0:00:31.9]} 24. f3 {[%clk 0:01:15.9]} 24... Ng3 {[%clk 0:00:22.6]}
25. Rxe6 {[%clk 0:01:10.4]} 25... fxe6 {[%clk 0:00:22]} 26. Nxg3 {[%clk
0:01:02.4]} 26... Qxg3 {[%clk 0:00:22.9]} 27. Qe2 {[%clk 0:01:02.9]} 27... Kf7
{[%clk 0:00:20.9]} 28. Qe3 {[%clk 0:00:57.6]} 28... Qg5 {[%clk 0:00:16.6]} 29.
Qc3 {[%clk 0:00:55.3]} 29... Qc1+ {[%clk 0:00:15.4]} 30. Kf2 {[%clk 0:00:55.6]}
30... Qg5 {[%clk 0:00:12.7]} 31. Be5 {[%clk 0:00:41.3]} 31... a5 {[%clk
0:00:09.9]} 32. Qd4 {[%clk 0:00:40.2]} 32... Qe7 {[%clk 0:00:07.7]} 33. Bxg7
{[%clk 0:00:36.5]} 33... Kg6 {[%clk 0:00:07.6]} 34. Be5 {[%clk 0:00:34.9]} 34...
Ba6 {[%clk 0:00:05.3]} 35. Qg4+ {[%clk 0:00:34]} 35... Kh7 {[%clk 0:00:05]} 36.
Qd4 {[%clk 0:00:29.5]} 36... Kg6 {[%clk 0:00:02.7]} 37. g4 {[%clk 0:00:27.4]}
37... Kh7 {[%clk 0:00:03.1]} 38. Kg3 {[%clk 0:00:26.9]} 38... Qd7 {[%clk
0:00:03.5]} 39. h4 {[%clk 0:00:25.4]} 39... Qf7 {[%clk 0:00:04]} 40. h5 {[%clk
0:00:23.8]} 40... Be2 {[%clk 0:00:03.7]} 41. Qe3 {[%clk 0:00:23.8]} 41... Bc4
{[%clk 0:00:03.7]} 42. b3 {[%clk 0:00:23]} 42... Bb5 {[%clk 0:00:03.9]} 43. Qd4
{[%clk 0:00:21.1]} 43... Ba6 {[%clk 0:00:03.9]} 44. f4 {[%clk 0:00:19.3]} 44...
Bb5 {[%clk 0:00:03.8]} 45. Qc5 {[%clk 0:00:17.3]} 45... Be2 {[%clk 0:00:03.5]}
46. Qc8 {[%clk 0:00:15.3]} 46... Bd1 {[%clk 0:00:03.2]} 47. Qh8# {[%clk
0:00:15]} 1-0

[Event "*** Titled Tuesday Blitz"]
[Site "Chess.com"]
[Date "2021.04.20"]
[Round "5"]
[White "jucAxx"]
[Black "GMJustin"]
[Result "1/2-1/2"]
[WhiteElo "2127"]
[BlackElo "2305"]
[TimeControl "180+1"]
[EndTime "10:55:11 PDT"]
[Termination "Game drawn by agreement"]

1. e4 {[%clk 0:03:00.9]} 1... c5 {[%clk 0:02:50.6]} 2. c3 {[%clk 0:03:00.8]}
2... Nf6 {[%clk 0:02:48.8]} 3. e5 {[%clk 0:03:00.9]} 3... Nd5 {[%clk 0:02:48.5]}
4. d4 {[%clk 0:03:01.8]} 4... cxd4 {[%clk 0:02:48.5]} 5. Nf3 {[%clk 0:03:02.4]}
5... e6 {[%clk 0:02:47.5]} 6. cxd4 {[%clk 0:03:03.3]} 6... b6 {[%clk 0:02:47.2]}
7. Nc3 {[%clk 0:02:45.4]} 7... Nxc3 {[%clk 0:02:46.7]} 8. bxc3 {[%clk
0:02:46.3]} 8... Qc7 {[%clk 0:02:47]} 9. Bd2 {[%clk 0:02:45.7]} 9... d6 {[%clk
0:02:39.3]} 10. Bd3 {[%clk 0:02:42.6]} 10... Nd7 {[%clk 0:02:33.6]} 11. exd6
{[%clk 0:02:37.8]} 11... Bxd6 {[%clk 0:02:32.8]} 12. O-O {[%clk 0:02:38.3]}
12... Bb7 {[%clk 0:02:28]} 13. h3 {[%clk 0:02:36.6]} 13... O-O {[%clk
0:02:21.2]} 14. Ng5 {[%clk 0:02:36.5]} 14... Nf6 {[%clk 0:02:17.8]} 15. Qe2
{[%clk 0:02:31.3]} 15... h6 {[%clk 0:02:11.2]} 16. Ne4 {[%clk 0:02:31.1]} 16...
Nxe4 {[%clk 0:02:09.8]} 17. Bxe4 {[%clk 0:02:32]} 17... Bxe4 {[%clk 0:02:09.2]}
18. Qxe4 {[%clk 0:02:32.9]} 18... Rac8 {[%clk 0:02:06.9]} 19. f4 {[%clk
0:02:31.4]} 19... Qc6 {[%clk 0:01:57.1]} 20. Qd3 {[%clk 0:02:27.5]} 20... Qd5
{[%clk 0:01:38.5]} 21. f5 {[%clk 0:02:24.7]} 21... e5 {[%clk 0:00:56.8]} 22. f6
{[%clk 0:02:22.6]} 22... exd4 {[%clk 0:00:51.4]} 23. fxg7 {[%clk 0:02:20.3]}
23... Kxg7 {[%clk 0:00:50.4]} 24. cxd4 {[%clk 0:01:54.1]} 24... f5 {[%clk
0:00:29.6]} 25. Bf4 {[%clk 0:01:31.7]} 25... Rcd8 {[%clk 0:00:13.3]} 26. Qg3+
{[%clk 0:01:10.3]} 26... Kh7 {[%clk 0:00:12.9]} 27. Rae1 {[%clk 0:00:50.4]}
27... Qxd4+ {[%clk 0:00:11.2]} 28. Kh1 {[%clk 0:00:40.5]} 28... Bxf4 {[%clk
0:00:09.7]} 29. Re7+ {[%clk 0:00:38.7]} 29... Kh8 {[%clk 0:00:08.6]} 30. Rxf4
{[%clk 0:00:37.7]} 30... Qa1+ {[%clk 0:00:05.7]} 31. Kh2 {[%clk 0:00:36.7]}
31... Rg8 {[%clk 0:00:06]} 32. Qh4 {[%clk 0:00:30.9]} 32... Rd6 {[%clk
0:00:06.1]} 33. Rxf5 {[%clk 0:00:10.4]} 33... Rdg6 {[%clk 0:00:06.1]} 34. Rf2
{[%clk 0:00:09.5]} 34... Qc3 {[%clk 0:00:02.9]} 35. Ref7 {[%clk 0:00:03.9]}
35... Qe5+ {[%clk 0:00:02.2]} 36. g3 {[%clk 0:00:03.6]} 36... Qxg3+ {[%clk
0:00:01.8]} 37. Qxg3 {[%clk 0:00:03.7]} 37... Rxg3 {[%clk 0:00:02.4]} 38. R7f6
{[%clk 0:00:03.5]} 38... R3g6 {[%clk 0:00:02.1]} 39. Rf7 {[%clk 0:00:03.5]}
39... R8g7 {[%clk 0:00:02]} 40. Rf8+ {[%clk 0:00:04]} 40... Kh7 {[%clk
0:00:02.4]} 41. R8f7 {[%clk 0:00:04.2]} 41... Rxf7 {[%clk 0:00:02.4]} 42. Rxf7+
{[%clk 0:00:05.1]} 42... Rg7 {[%clk 0:00:02.9]} 43. Rf2 {[%clk 0:00:05.1]} 43...
a5 {[%clk 0:00:02.6]} 44. Rb2 {[%clk 0:00:05]} 44... Rb7 {[%clk 0:00:02.4]}
1/2-1/2

[Event "*** Titled Tuesday Blitz"]
[Site "Chess.com"]
[Date "2021.04.20"]
[Round "5"]
[White "Joseacorrea"]
[Black "Kaslask"]
[Result "1-0"]
[WhiteElo "2073"]
[BlackElo "2283"]
[TimeControl "180+1"]
[EndTime "10:55:11 PDT"]
[Termination "Joseacorrea won on time"]

1. d4 {[%clk 0:03:00.1]} 1... Nf6 {[%clk 0:02:58.6]} 2. e3 {[%clk 0:03:01]} 2...
e6 {[%clk 0:02:53.3]} 3. Bd3 {[%clk 0:03:01.5]} 3... c5 {[%clk 0:02:51.5]} 4. f4
{[%clk 0:03:00.2]} 4... b6 {[%clk 0:02:49.1]} 5. Qe2 {[%clk 0:02:58.3]} 5... Bb7
{[%clk 0:02:46.5]} 6. Nf3 {[%clk 0:02:58]} 6... Nc6 {[%clk 0:02:39.6]} 7. c3
{[%clk 0:02:57.8]} 7... cxd4 {[%clk 0:02:31.2]} 8. exd4 {[%clk 0:02:57.2]} 8...
Qc7 {[%clk 0:02:26.4]} 9. O-O {[%clk 0:02:53.8]} 9... Bd6 {[%clk 0:02:20.4]} 10.
Ne5 {[%clk 0:02:51.1]} 10... Nd5 {[%clk 0:02:18.1]} 11. Nd2 {[%clk 0:02:42.6]}
11... Nxf4 {[%clk 0:02:09.4]} 12. Rxf4 {[%clk 0:02:36.6]} 12... Nxe5 {[%clk
0:02:09.2]} 13. dxe5 {[%clk 0:02:28.9]} 13... Bxe5 {[%clk 0:02:08.9]} 14. Rh4
{[%clk 0:02:11.4]} 14... h5 {[%clk 0:01:28.5]} 15. Nf3 {[%clk 0:01:47.9]} 15...
Bf6 {[%clk 0:01:23.4]} 16. Rc4 {[%clk 0:01:30.9]} 16... Qd6 {[%clk 0:01:14.2]}
17. Bg5 {[%clk 0:01:05.9]} 17... Ba6 {[%clk 0:01:04]} 18. Bxf6 {[%clk
0:00:46.5]} 18... Bxc4 {[%clk 0:01:02.9]} 19. Qe4 {[%clk 0:00:27.4]} 19... Rc8
{[%clk 0:00:50.6]} 20. Bxc4 {[%clk 0:00:16.5]} 20... gxf6 {[%clk 0:00:49.8]} 21.
Bd3 {[%clk 0:00:12]} 21... Rg8 {[%clk 0:00:41.4]} 22. Re1 {[%clk 0:00:10.9]}
22... Ke7 {[%clk 0:00:34.7]} 23. Nd4 {[%clk 0:00:09.6]} 23... Qc5 {[%clk
0:00:25.1]} 24. Kh1 {[%clk 0:00:06.4]} 24... Kf8 {[%clk 0:00:19.8]} 25. Qh4
{[%clk 0:00:04.6]} 25... Qg5 {[%clk 0:00:18.5]} 26. Qxg5 {[%clk 0:00:04.4]}
26... Rxg5 {[%clk 0:00:16.4]} 27. g3 {[%clk 0:00:04.9]} 27... d5 {[%clk
0:00:15.2]} 28. Nb5 {[%clk 0:00:04.4]} 28... a6 {[%clk 0:00:12.3]} 29. Na3
{[%clk 0:00:02.1]} 29... b5 {[%clk 0:00:11.6]} 30. Nc2 {[%clk 0:00:02.6]} 30...
Ke7 {[%clk 0:00:11.5]} 31. Nd4 {[%clk 0:00:03.1]} 31... h4 {[%clk 0:00:08.3]}
32. Nf3 {[%clk 0:00:04]} 32... Rh5 {[%clk 0:00:06.2]} 33. Nxh4 {[%clk
0:00:04.6]} 33... Rg8 {[%clk 0:00:05.9]} 34. Be2 {[%clk 0:00:04.3]} 34... Rhg5
{[%clk 0:00:04.9]} 35. Nf3 {[%clk 0:00:04.3]} 35... R5g7 {[%clk 0:00:03.5]} 36.
Bf1 {[%clk 0:00:04.3]} 36... Kd6 {[%clk 0:00:03.5]} 37. Bg2 {[%clk 0:00:04.8]}
37... f5 {[%clk 0:00:03.1]} 38. Nd4 {[%clk 0:00:04.6]} 38... f4 {[%clk
0:00:03.1]} 39. Re2 {[%clk 0:00:03.3]} 39... fxg3 {[%clk 0:00:02.5]} 40. hxg3
{[%clk 0:00:03.8]} 40... Rxg3 {[%clk 0:00:02.1]} 41. Kh2 {[%clk 0:00:03.6]}
41... R3g4 {[%clk 0:00:01.5]} 42. Nf3 {[%clk 0:00:03.1]} 1-0

[Event "*** Titled Tuesday Blitz"]
[Site "Chess.com"]
[Date "2021.04.20"]
[Round "5"]
[White "Sibelephant"]
[Black "Vanina1989"]
[Result "1-0"]
[WhiteElo "3097"]
[BlackElo "2785"]
[TimeControl "180+1"]
[EndTime "10:55:13 PDT"]
[Termination "Sibelephant won by resignation"]

1. d4 {[%clk 0:02:59.7]} 1... d5 {[%clk 0:03:00]} 2. Nf3 {[%clk 0:02:58.5]} 2...
Nf6 {[%clk 0:02:59.9]} 3. Bg5 {[%clk 0:02:58.5]} 3... c5 {[%clk 0:02:56.7]} 4.
e3 {[%clk 0:02:58.1]} 4... Nc6 {[%clk 0:02:55.7]} 5. Nbd2 {[%clk 0:02:57.6]}
5... cxd4 {[%clk 0:02:49.9]} 6. exd4 {[%clk 0:02:57.4]} 6... Bf5 {[%clk
0:02:49.9]} 7. c3 {[%clk 0:02:54.6]} 7... e6 {[%clk 0:02:47.5]} 8. Qb3 {[%clk
0:02:53.5]} 8... Qc7 {[%clk 0:02:47.7]} 9. Bh4 {[%clk 0:02:33]} 9... Bd6 {[%clk
0:02:46.9]} 10. Bg3 {[%clk 0:02:33.3]} 10... O-O {[%clk 0:02:46.9]} 11. Be2
{[%clk 0:02:31.4]} 11... Ne4 {[%clk 0:02:44.7]} 12. O-O {[%clk 0:02:19.2]} 12...
Nxg3 {[%clk 0:02:44.6]} 13. hxg3 {[%clk 0:02:19.1]} 13... h6 {[%clk 0:02:45.1]}
14. Rfe1 {[%clk 0:02:16.5]} 14... Rfe8 {[%clk 0:02:44.3]} 15. Nf1 {[%clk
0:02:13.7]} 15... Be4 {[%clk 0:02:41.2]} 16. N3d2 {[%clk 0:02:03.9]} 16... Bg6
{[%clk 0:02:33.9]} 17. Qd1 {[%clk 0:02:01.1]} 17... e5 {[%clk 0:02:10.1]} 18.
dxe5 {[%clk 0:02:00.6]} 18... Bxe5 {[%clk 0:02:10.4]} 19. Nf3 {[%clk 0:01:58.4]}
19... Rad8 {[%clk 0:02:04.5]} 20. Bd3 {[%clk 0:01:54.9]} 20... Be4 {[%clk
0:01:58.3]} 21. Bb5 {[%clk 0:01:24.5]} 21... Bf6 {[%clk 0:01:56]} 22. N1d2
{[%clk 0:01:16.1]} 22... Qb6 {[%clk 0:01:52.8]} 23. Qb3 {[%clk 0:01:03.4]} 23...
Re7 {[%clk 0:01:52.6]} 24. Bxc6 {[%clk 0:00:41.4]} 24... bxc6 {[%clk 0:01:38.9]}
25. Qxb6 {[%clk 0:00:41.4]} 25... axb6 {[%clk 0:01:39.2]} 26. Nd4 {[%clk
0:00:42.1]} 26... Rc8 {[%clk 0:01:31.3]} 27. Nxe4 {[%clk 0:00:41.5]} 27... dxe4
{[%clk 0:01:25.2]} 28. Nf5 {[%clk 0:00:41.5]} 28... Re6 {[%clk 0:01:21.3]} 29.
Rad1 {[%clk 0:00:41.7]} 29... Re5 {[%clk 0:01:02.2]} 30. Nd6 {[%clk 0:00:32.3]}
30... Rd8 {[%clk 0:00:47.6]} 31. Nc4 {[%clk 0:00:32.4]} 31... Rxd1 {[%clk
0:00:19.3]} 32. Rxd1 {[%clk 0:00:32.4]} 32... Rb5 {[%clk 0:00:19.2]} 33. Rd6
{[%clk 0:00:31.8]} 33... Rc5 {[%clk 0:00:13]} 34. Nxb6 {[%clk 0:00:31.2]} 34...
e3 {[%clk 0:00:13.3]} 35. fxe3 {[%clk 0:00:30.6]} 35... Be5 {[%clk 0:00:12.7]}
36. Rd8+ {[%clk 0:00:30]} 36... Kh7 {[%clk 0:00:12.7]} 37. Nd7 {[%clk
0:00:30.6]} 37... Rd5 {[%clk 0:00:12.9]} 38. Nf8+ {[%clk 0:00:29.7]} 38... Kg8
{[%clk 0:00:12.3]} 39. Ne6+ {[%clk 0:00:23.5]} 39... Kh7 {[%clk 0:00:09.5]} 40.
Rxd5 {[%clk 0:00:23]} 40... cxd5 {[%clk 0:00:10]} 41. Nf4 {[%clk 0:00:23.6]}
41... g5 {[%clk 0:00:09.1]} 42. Nxd5 {[%clk 0:00:23.9]} 42... Bxg3 {[%clk
0:00:09.5]} 43. a4 {[%clk 0:00:24.4]} 43... Kg6 {[%clk 0:00:09.6]} 44. a5 {[%clk
0:00:24.9]} 44... Bb8 {[%clk 0:00:09.7]} 45. a6 {[%clk 0:00:25.3]} 45... Ba7
{[%clk 0:00:09.2]} 46. Kf2 {[%clk 0:00:25.8]} 46... Kf5 {[%clk 0:00:08.9]} 47.
Ne7+ {[%clk 0:00:16.3]} 47... Ke4 {[%clk 0:00:08.9]} 48. Nc6 {[%clk 0:00:16.9]}
48... Bxe3+ {[%clk 0:00:08.2]} 49. Ke2 {[%clk 0:00:17.3]} 1-0

[Event "*** Titled Tuesday Blitz"]
[Site "Chess.com"]
[Date "2021.04.20"]
[Round "5"]
[White "GrigoriyM2001"]
[Black "Matensien"]
[Result "0-1"]
[WhiteElo "2563"]
[BlackElo "2386"]
[TimeControl "180+1"]
[EndTime "10:55:14 PDT"]
[Termination "Matensien won on time"]

1. d4 {[%clk 0:03:00.9]} 1... Nf6 {[%clk 0:02:59.4]} 2. c4 {[%clk 0:03:00.5]}
2... g6 {[%clk 0:02:59.8]} 3. Nc3 {[%clk 0:02:59.9]} 3... Bg7 {[%clk 0:03:00]}
4. g3 {[%clk 0:03:00.1]} 4... O-O {[%clk 0:02:59.5]} 5. Bg2 {[%clk 0:03:00.3]}
5... Nc6 {[%clk 0:02:57.2]} 6. Nf3 {[%clk 0:02:58.4]} 6... d6 {[%clk 0:02:55]}
7. d5 {[%clk 0:02:57.8]} 7... Na5 {[%clk 0:02:54.4]} 8. Nd2 {[%clk 0:02:58]}
8... c6 {[%clk 0:02:53.1]} 9. b4 {[%clk 0:02:43.3]} 9... Nxd5 {[%clk 0:02:52.7]}
10. cxd5 {[%clk 0:02:20.4]} 10... Bxc3 {[%clk 0:02:37.8]} 11. Rb1 {[%clk
0:02:20.1]} 11... Nc4 {[%clk 0:02:37.9]} 12. dxc6 {[%clk 0:02:19.5]} 12... bxc6
{[%clk 0:02:35.1]} 13. Bxc6 {[%clk 0:02:18.6]} 13... Rb8 {[%clk 0:02:34.3]} 14.
O-O {[%clk 0:02:17.8]} 14... Ne5 {[%clk 0:02:01.7]} 15. Bg2 {[%clk 0:02:02.8]}
15... Rxb4 {[%clk 0:02:02.1]} 16. Rxb4 {[%clk 0:02:02.7]} 16... Bxb4 {[%clk
0:02:03]} 17. Nb3 {[%clk 0:02:03.1]} 17... Be6 {[%clk 0:01:50.4]} 18. Bh6 {[%clk
0:02:02.2]} 18... Re8 {[%clk 0:01:49.5]} 19. Qd4 {[%clk 0:02:01.6]} 19... Qb6
{[%clk 0:01:44.2]} 20. Qa1 {[%clk 0:01:46.5]} 20... f6 {[%clk 0:01:30.8]} 21.
Be3 {[%clk 0:01:44.1]} 21... Qa6 {[%clk 0:01:27.5]} 22. Nd4 {[%clk 0:01:40.9]}
22... Bf7 {[%clk 0:01:18.3]} 23. h3 {[%clk 0:01:00.2]} 23... Rc8 {[%clk
0:00:53.6]} 24. Rc1 {[%clk 0:00:44.1]} 24... Rxc1+ {[%clk 0:00:42.4]} 25. Qxc1
{[%clk 0:00:45]} 25... Qxa2 {[%clk 0:00:42.4]} 26. Qc8+ {[%clk 0:00:21.8]} 26...
Kg7 {[%clk 0:00:41.9]} 27. Qc7 {[%clk 0:00:21.9]} 27... d5 {[%clk 0:00:29]} 28.
Qc8 {[%clk 0:00:21.7]} 28... Qc4 {[%clk 0:00:05.8]} 29. Ne6+ {[%clk 0:00:06.6]}
29... Bxe6 {[%clk 0:00:04.5]} 30. Qxe6 {[%clk 0:00:07.5]} 30... Qc6 {[%clk
0:00:03.3]} 31. Bxd5 {[%clk 0:00:03.9]} 31... Qxe6 {[%clk 0:00:02.7]} 32. Bxe6
{[%clk 0:00:04.8]} 32... a5 {[%clk 0:00:03.3]} 33. Bd5 {[%clk 0:00:04.2]} 33...
a4 {[%clk 0:00:02.4]} 34. Bd4 {[%clk 0:00:04.1]} 34... Nd7 {[%clk 0:00:02.1]}
35. e4 {[%clk 0:00:02.9]} 35... Bc5 {[%clk 0:00:02.1]} 36. Ba1 {[%clk
0:00:02.1]} 36... Nb6 {[%clk 0:00:02.4]} 37. Bc6 {[%clk 0:00:02]} 37... a3
{[%clk 0:00:02.8]} 38. Bb5 {[%clk 0:00:02]} 38... e5 {[%clk 0:00:03]} 39. Kf1
{[%clk 0:00:02.3]} 39... Bd4 {[%clk 0:00:03.6]} 40. Bxd4 {[%clk 0:00:01.3]}
40... exd4 {[%clk 0:00:04.5]} 0-1